[Event "British Championship 2024"]
[Site "Hull"]
[Date "2024.07.31"]
[Round "3.3"]
[White "McShane, Luke J"]
[Black "Wadsworth, Matthew J"]
[Result "0-1"]
[Annotator "TA"]
[ECO "B10"]
[WhiteElo "2617"]
[BlackElo "2467"]
[PlyCount "114"]
[EventDate "2024.07.31"]
[EventCountry "GBR"]
[SourceTitle "playchess.com"]
[Source "ChessBase"]
[SourceQuality "1"]
[TimeControl "40/5400+30:1800+30"]

{[%evp 54,114,0,0,0,-60,0,0,52,0,0,0,0,0,0,0,0,-91,-83,-85,-92,-192,-192,-306,-366,-378,-375,-400,-384,-358,-385,-377,-397,-396,-289,-396,-395,-434,-437,-454,-446,-443,-428,-424,-395,-3048,-3217,-1310,-3518,-4622,-3432,-1838,-1398,-4913,-444,-29978,-29979,-29979,-29980,-29980,-29981,-29981,-29980]} 1. e4 {[%emt 0:00:08]} c6 {[%emt 0:00:12]} 2. Nf3 {[%emt 0:00:15]} d5 {[%emt 0:00:08]} 3. d3 {[%emt 0:00:06]} dxe4 {[%emt 0:01:37]} 4. dxe4 {[%emt 0:00:08]} Qxd1+ {[%emt 0:00:10]} 5. Kxd1 {[%emt 0:00:03]} Nf6 {[%emt 0:00:14]} 6. Nfd2 {[%emt 0:00:13] B10: Caro-Kann: 2 d3 and 2 c4.} h5 {[%emt 0:04:37]} 7. h4 {[%emt 0:00:26]} Be6 {[%emt 0:02:16]} 8. f3 {[%emt 0:02:04]} Nfd7 {[%emt 0:01:04]} 9. a4 $146 {[%emt 0:02:39]} ({Predecessor:} 9. Bc4 Bxc4 10. Nxc4 e5 11. a4 f6 12. Ke2 Na6 13. Rd1 O-O-O 14. c3 Ndc5 15. Rxd8+ Kxd8 {1-0 Carlsen,M (2863)-Svane,R (2613) Katara Bullet Final blitz 2020 (1.3)}) 9... b6 {[%emt 0:04:42]} 10. c3 {[%emt 0:02:53]} g6 {[%emt 0:04:17]} 11. Kc2 {[%emt 0:10:51]} Bh6 {[%emt 0:04:46]} 12. Na3 {[%emt 0:00:19]} a5 {[%emt 0:08:13]} 13. Bc4 {[%emt 0:11:20]} Bxc4 {[%emt 0:02:18]} 14. Naxc4 {[%emt 0:00:16]} Na6 {[%emt 0:01:16]} 15. Nb3 {[%emt 0:05:22]} Bxc1 {[%emt 0:04:21]} 16. Rhxc1 {[%emt 0:00:07]} O-O-O {[%emt 0:01:45]} 17. e5 {[%emt 0:02:58]} Kc7 {[%emt 0:03:40]} 18. e6 {[%emt 0:02:09]} fxe6 {[%emt 0:00:51]} 19. Re1 {[%emt 0:17:03]} Ndc5 {[%emt 0:02:34]} 20. Nbd2 {[%emt 0:00:16]} Rd5 {[%emt 0:02:18]} 21. Nf1 {[%emt 0:01:43]} Rhd8 {[%emt 0:04:57]} 22. Ne5 {[%emt 0:18:27]} R8d6 {[%emt 0:06:05]} 23. Re3 {[%emt 0:04:02]} b5 {[%emt 0:04:08]} 24. b3 {[%emt 0:02:27]} b4 {[%emt 0:09:05]} 25. c4 {[%emt 0:00:52]} Rd4 {[%emt 0:00:52]} 26. g3 {[%emt 0:00:19]} Rd8 {[%emt 0:02:17]} 27. Nxg6 {[%emt 0:08:52]} Nxb3 {[%emt 0:01:56]} 28. Kxb3 {[%emt 0:02:19]} Nc5+ {[%emt 0:01:57]} 29. Ka2 {[%emt 0:03:53]} (29. Kc2 $11 b3+ (29... Rxc4+ 30. Kb2 $15) 30. Kc3 Rd3+ 31. Rxd3 (31. Kb2 Rd1 $17) 31... Rxd3+ 32. Kb2 Rxf3 33. Ka3) 29... Rxc4 {[%emt 0:04:52]} (29... b3+ $1 $15 30. Kb2 Rd1 (30... Rxc4 $2 31. Rae1 $17) 31. Rxd1 (31. Nxe7 $2 Nd3+ 32. Rxd3 R8xd3 $19) 31... Rxd1) 30. Rae1 $11 {[%emt 0:01:10]} Nd3 {[%emt 0:04:52] [#]} (30... Rc2+ $11 31. Kb1 Rf2) 31. Rxd3 {[%emt 0:01:01]} (31. Nf4 $1 $14 Nxf4 (31... Rc2+ $2 32. Kb1 $18) 32. gxf4) 31... Rxd3 $11 {[%emt 0:00:13]} 32. Ne5 $1 {[%emt 0:00:03]} Ra3+ {[%emt 0:03:16]} 33. Kb2 {[%emt 0:00:07]} Rd4 {[%emt 0:01:23]} 34. Rc1 {[%emt 0:01:55]} Kb7 {[%emt 0:03:19]} (34... Rxa4 $2 35. Nxc6 (35. Rxc6+ Kb7 $11) 35... Rd6 36. Nxa5+ Kb8 37. Nb3 $18) 35. Nc4 {[%emt 0:00:35]} (35. Nxc6 Rd5 36. g4 Rxf3 (36... Rxa4 37. g5 $11) 37. gxh5 Rf2+ (37... Rxh5 38. Nd4 $17) (37... Rc3 38. Nxe7 Rxc1 39. Kxc1 $15) 38. Kb1 Rd3 $17 (38... Rxh5 39. Nd8+ Kb6 40. Nxe6 $11)) (35. Rc2 $11 {remains equal.}) 35... Rxf3 $17 {[%emt 0:00:48]} (35... Rxa4 36. Nfd2 $16 (36. Kb3 Rxc4 37. Kxc4 Ra2 $11)) 36. Nxa5+ {[%emt 0:00:13]} Kb6 {[%emt 0:00:28]} 37. Nb3 {[%emt 0:00:44] [#]} (37. Nxc6 $2 Rdd3 38. Nxe7 Rf2+ 39. Rc2 Rxf1 $19) (37. Nc4+ $17 {was the only chance.} Kc7 38. Ncd2) 37... Rf2+ $1 $19 {[%emt 0:01:44]} 38. Rc2 {[%emt 0:00:08]} (38. Kb1 $142 Rd3 39. Nfd2) 38... Rxc2+ $19 {[%emt 0:00:42]} (38... Rxf1 $2 {too greedy.} 39. a5+ (39. Nxd4 c5 $18) 39... Ka6 40. Rxc6+ (40. Nxd4 Kxa5 41. Rc5+ Ka4 $18) 40... Kb5 41. Rc5+ (41. Nxd4+ Kxa5 42. Rxe6 Rd1 $18) 41... Ka6 42. Nxd4 $18) 39. Kxc2 {[%emt 0:00:03]} Rc4+ {[%emt 0:01:28]} 40. Kb2 {[%emt 0:00:22]} Rc3 {[%emt 0:00:59]} 41. Nfd2 {[%emt 0:04:06]} Rxg3 {[%emt 0:05:51]} 42. Nc4+ {[%emt 0:01:04]} Ka6 {[%emt 0:01:45]} 43. Nc5+ {[%emt 0:04:08]} Ka7 {[%emt 0:00:06]} 44. Ne5 {[%emt 0:00:04]} Rc3 {[%emt 0:09:07]} 45. Nxe6 {[%emt 0:05:08]} Kb6 {[%emt 0:03:11]} 46. Nd4 {[%emt 0:16:37]} Ka5 {[%emt 0:05:08]} 47. Nexc6+ {[%emt 0:01:20]} Kxa4 {[%emt 0:00:08]} 48. Nxe7 {[%emt 0:00:05]} Rh3 {[%emt 0:00:36]} 49. Nef5 $2 {[%emt 0:00:37]} (49. Ng6 Rh2+ 50. Kb1) 49... Rh2+ $19 {[%emt 0:00:32]} 50. Kb1 {[%emt 0:01:40]} b3 {[%emt 0:03:14]} 51. Nf3 {[%emt 0:00:26]} Rf2 {[%emt 0:00:16]} 52. N3d4 {[%emt 0:00:26]} Ka3 {[%emt 0:01:20]} 53. Nb5+ {[%emt 0:00:44]} Kb4 {[%emt 0:00:07]} 54. Nbd4 {[%emt 0:00:04]} (54. Nbd6 $19 Rf1+ 55. Kb2) 54... Kc4 {[%emt 0:01:09]} 55. Kc1 {[%emt 0:00:52]} Kd3 {[%emt 0:00:46]} 56. Kb1 {[%emt 0:00:38]} Ke4 {[%emt 0:00:49]} 57. Kc1 {[%emt 0:00:08]} Rxf5 {[%emt 0:00:42]} 0-1

[Event "British Championship 2024"]
[Site "Hull"]
[Date "2024.07.31"]
[Round "3.4"]
[White "Royal, Shreyas"]
[Black "Hebden, Mark L"]
[Result "1-0"]
[Annotator "TA"]
[ECO "E71"]
[WhiteElo "2483"]
[BlackElo "2398"]
[PlyCount "61"]
[EventDate "2024.07.31"]
[EventCountry "GBR"]
[SourceTitle "playchess.com"]
[Source "ChessBase"]
[SourceQuality "1"]
[TimeControl "40/5400+30:1800+30"]

{[%evp 10,61,46,33,37,38,55,0,0,-2,6,-19,-13,-31,-38,-46,-54,-64,-34,-62,-59,-91,-87,-97,-85,-103,-98,-167,-171,-168,-159,-328,-354,-341,-379,-329,-305,-385,-381,-383,-376,-541,-205,-222,-186,-185,-179,-161,-164,-156,-162,-156,885,880]} 1. d4 {[%emt 0:00:03]} Nf6 {[%emt 0:00:23]} 2. c4 {[%emt 0:00:05]} g6 {[%emt 0:00:57]} 3. Nc3 {[%emt 0:00:07]} Bg7 {[%emt 0:00:09]} 4. e4 {[%emt 0:00:05]} d6 {[%emt 0:00:06]} 5. h3 {[%emt 0:00:05]} O-O {[%emt 0:00:15]} 6. Be3 {[%emt 0:00:05]} a5 {[%emt 0:04:19]} 7. Nf3 {[%emt 0:03:49]} Na6 {[%emt 0:05:06][%cal Oe7e5]} 8. Nd2 {[%emt 0:07:09]} ({Better is} 8. Be2 $14) 8... Nd7 {[%emt 0:12:13] The position is equal.} 9. Be2 {[%emt 0:00:06]} e5 {[%emt 0:01:04]} 10. d5 {[%emt 0:00:56]} f5 {[%emt 0:00:23] Hoping for ...f4.} 11. f3 {[%emt 0:00:30] [#]} Bh6 $1 {[%emt 0:00:35]} 12. Bf2 {[%emt 0:00:05]} (12. Bxh6 Qh4+) 12... Ndc5 {[%emt 0:02:55]} 13. h4 {[%emt 0:04:02]} Bd7 {[%emt 0:05:04]} 14. g3 {[%emt 0:15:16]} b6 {[%emt 0:09:40]} 15. O-O {[%emt 0:08:51]} Qe7 {[%emt 0:02:43]} 16. Kg2 {[%emt 0:00:20]} Rf7 {[%emt 0:01:17]} 17. Nb3 {[%emt 0:13:26]} Na4 {[%emt 0:06:40]} 18. Nb5 {[%emt 0:03:46]} (18. Nxa4 $17 Bxa4 19. Bd3) 18... fxe4 $19 {[%emt 0:04:32]} ({Don't take} 18... Nxb2 19. Qc2 Na4 20. Nxa5 $17) 19. fxe4 {[%emt 0:00:12][%cal Ob3a5]} Raf8 $1 {[%emt 0:04:30][%cal Of7f2] And now ...Rxf2+! would win.} ({Much less strong is} 19... Nxb2 20. Qc2 Na4 21. Nxa5 $15) 20. Rb1 $2 {[%emt 0:05:56] [#]} (20. Nxa5 $17 {was necessary.} Nxb2 21. Qb3 bxa5 22. Qxb2) 20... Rxf2+ $1 {[%emt 0:06:04][%mdl 512]} 21. Rxf2 {[%emt 0:00:04] [#]} Bh3+ $1 {[%emt 0:00:13][%mdl 512]} 22. Kxh3 {[%emt 0:00:04]} Rxf2 {[%emt 0:00:06]} 23. Qe1 {[%emt 0:01:58]} Qf6 {[%emt 0:01:11] ...Nb4 is the strong threat.} 24. a3 {[%emt 0:03:39]} Kh8 {[%emt 0:04:25]} 25. Nc1 {[%emt 0:05:22]} (25. Bg4 {is a better defense.}) 25... N4c5 $2 {[%emt 0:05:48]} (25... N6c5 26. Nxc7 Bxc1 (26... Nxe4 $2 27. Ne8 $19) 27. Rxc1 Nxe4 (27... Nxb2 $2 28. Ne8 $19)) 26. Nc3 {[%emt 0:00:40]} Bxc1 {[%emt 0:06:06]} 27. Qxc1 {[%emt 0:01:04] [#]} Nxe4 $1 {[%emt 0:00:31][%mdl 512]} 28. Nxe4 {[%emt 0:00:04]} Qf5+ {[%emt 0:00:06]} 29. Bg4 {[%emt 0:00:03]} Qxe4 {[%emt 0:00:10]} 30. Qg1 {[%emt 0:00:05] Repels Qg2+} Rd2 {[%emt 0:04:02] [#]} (30... Kg7 $17 31. Rf1 Rxf1 (31... Rxb2 32. Be6 $11) 32. Qxf1 Nc5) 31. Qf1 $1 {[%emt 0:00:46] Never resign too early!   Weighted Error Value: White=0.34/Black=0.31.  Loses game:     	White=1     	Black=1      Mistake:       	White=3     	Black=1      Inaccurate:     	White=2     	Black=1      OK:         	White=7     	Black=16     Best:        	White=2     	---        Strong:       	White=1     	---        Brilliant:      	---       	Black=2} 1-0

[Event "British Championship 2024"]
[Site "Hull"]
[Date "2024.07.31"]
[Round "3.5"]
[White "Gasanov, Eldar"]
[Black "Derakhshani, Borna"]
[Result "1/2-1/2"]
[Annotator "TA"]
[ECO "E15"]
[WhiteElo "2469"]
[BlackElo "2355"]
[PlyCount "68"]
[EventDate "2024.07.31"]
[EventCountry "GBR"]
[SourceTitle "playchess.com"]
[Source "ChessBase"]
[SourceQuality "1"]
[TimeControl "40/5400+30:1800+30"]

{[%evp 10,68,22,25,41,45,57,52,69,55,60,48,56,53,55,41,52,44,115,114,107,108,130,72,75,69,95,79,107,96,227,233,237,232,416,413,429,441,416,273,297,250,257,260,242,166,168,100,182,187,202,162,163,0,0,0,147,0,0,0,154]} 1. d4 {[%emt 0:00:12]} Nf6 {[%emt 0:00:16]} 2. c4 {[%emt 0:00:25]} e6 {[%emt 0:00:05]} 3. Nf3 {[%emt 0:00:41]} b6 {[%emt 0:00:06]} 4. g3 {[%emt 0:00:53]} Ba6 {[%emt 0:00:05]} 5. Qb3 {[%emt 0:01:13]} d5 {[%emt 0:05:50]} 6. cxd5 {[%emt 0:00:29]} exd5 {[%emt 0:00:14]} 7. Nc3 {[%emt 0:00:33][%cal Oe2e4]} Be7 {[%emt 0:01:48]} 8. Bg2 {[%emt 0:01:02]} O-O {[%emt 0:00:15] White is slightly better.} 9. O-O {[%emt 0:00:43]} Bb7 {[%emt 0:10:30]} 10. Bf4 {[%emt 0:02:45]} c6 {[%emt 0:15:34]} 11. Rad1 {[%emt 0:09:49]} Nbd7 {[%emt 0:07:11]} 12. Rfe1 {[%emt 0:02:54]} Nh5 {[%emt 0:03:13]} 13. Bc1 {[%emt 0:01:33]} f5 {[%emt 0:05:08] [#]} ({Better is} 13... Nhf6 $14) 14. e4 $1 $16 {[%emt 0:04:41]} fxe4 {[%emt 0:03:21]} 15. Nxe4 {[%emt 0:00:24][%cal Bc3e4,Be4f2,Bf2g4][%mdl 32]} (15. Rxe4 {simplifies} Re8 16. Re2 Nhf6 17. Rde1) 15... h6 {[%emt 0:07:48]} 16. Ne5 {[%emt 0:02:45]} ({White should try} 16. Bh3) 16... Nxe5 {[%emt 0:00:26]} 17. dxe5 {[%emt 0:00:19]} Qe8 {[%emt 0:05:43]} 18. f4 {[%emt 0:20:19][%cal Bf2f4,Bf4f5,Bf5f6][%mdl 32] White is much more active.} Qf7 {[%emt 0:05:38]} 19. Nf2 {[%emt 0:04:43]} Qe6 {[%emt 0:16:18]} (19... g5 $16) 20. Bh3 $18 {[%emt 0:04:28]} Qf7 {[%emt 0:00:07]} 21. f5 {[%emt 0:03:02]} g5 $2 {[%emt 0:02:51]} (21... Bc5 {keeps fighting.} 22. Qf3 (22. Be3 Rae8 $18) 22... Ba6) 22. Ng4 {[%emt 0:06:03]} Qh7 {[%emt 0:01:42]} 23. f6 {[%emt 0:06:56]} Bc5+ {[%emt 0:00:08]} 24. Kh1 {[%emt 0:00:16]} Rae8 {[%emt 0:01:53]} 25. Qc3 {[%emt 0:00:49]} Kh8 {[%emt 0:03:19]} 26. a3 {[%emt 0:11:08] Black must now prevent b4.} a5 {[%emt 0:00:03]} 27. Qf3 {[%emt 0:03:16]} Bc8 {[%emt 0:00:58]} 28. Rf1 {[%emt 0:01:16]} (28. Bg2 $18) 28... Be6 {[%emt 0:00:19]} (28... Qe4 $16) 29. Bg2 {[%emt 0:01:31]} Qg6 {[%emt 0:00:28]} 30. Rfe1 {[%emt 0:01:46]} Kg8 {[%emt 0:01:11]} 31. Qe2 {[%emt 0:02:00]} Bf5 {[%emt 0:00:34][%cal Rh5f6]} 32. Qf3 $1 {[%emt 0:01:59][%cal Of3f5] [#] And now Qxf5! would win.} Be6 {[%emt 0:00:00]} 33. Qe2 {[%emt 0:06:07]} Bf5 {[%cal Rh5f6]} 34. Qf3 $1 {[%emt 0:00:00][%cal Of3f5] Threatens to win with Qxf5!} Be6 $1 {[%emt 0:04:28] Weighted Error Value: White=0.39/Black=0.23 (precise) .  Mistake:       	White=2     	Black=4      Inaccurate:     	White=2     	Black=2      OK:         	White=9     	Black=10     Best:        	White=1     	Black=1      Strong:       	White=3     	Black=1} 1/2-1/2

[Event "British Championship 2024"]
[Site "Hull"]
[Date "2024.07.31"]
[Round "3.6"]
[White "Adams, Michael"]
[Black "Van Zyl-Rudd, Jack"]
[Result "1-0"]
[Annotator "TA"]
[ECO "B45"]
[WhiteElo "2670"]
[BlackElo "2292"]
[PlyCount "71"]
[EventDate "2024.07.31"]
[EventCountry "GBR"]
[SourceTitle "playchess.com"]
[Source "ChessBase"]
[SourceQuality "1"]
[TimeControl "40/5400+30:1800+30"]

{[%evp 16,71,0,0,0,0,0,0,0,0,0,0,0,0,0,-10,5,6,6,0,13,3,7,0,7,14,0,0,98,37,105,76,156,74,87,71,82,83,82,97,97,98,127,118,113,121,113,121,120,127,322,185,202,197,518,523,512,486]} 1. e4 {[%emt 0:00:04]} c5 {[%emt 0:00:03]} 2. Nf3 {[%emt 0:00:07]} e6 {[%emt 0:00:04]} 3. d4 {[%emt 0:00:07]} cxd4 {[%emt 0:00:05]} 4. Nxd4 {[%emt 0:00:05]} Nf6 {[%emt 0:00:06]} 5. Nc3 {[%emt 0:00:10]} Nc6 {[%emt 0:00:04]} 6. Be2 {[%emt 0:00:19]} Bb4 {[%emt 0:01:53]} 7. O-O {[%emt 0:00:17]} Bxc3 {[%emt 0:00:09]} 8. bxc3 {[%emt 0:00:07]} Nxe4 {[%emt 0:00:06]} 9. Qd3 {[%emt 0:01:18]} d5 {[%emt 0:01:26]} 10. Ba3 {[%emt 0:02:23]} Qa5 {[%emt 0:01:30]} 11. Nb5 {[%emt 0:01:12]} a6 {[%emt 0:01:06] The position is equal.} 12. Nd6+ {[%emt 0:00:07]} Nxd6 {[%emt 0:00:14]} 13. Bxd6 {[%emt 0:00:08] This pair of bishops is nice.} Ne7 {[%emt 0:01:11]} 14. Bxe7 {[%emt 0:06:18]} Kxe7 {[%emt 0:00:10]} 15. Qg3 {[%emt 0:00:07]} Bd7 {[%emt 0:01:05]} 16. Qxg7 {[%emt 0:07:41]} Rhg8 $1 {[%emt 0:00:19]} 17. Qd4 {[%emt 0:06:35]} Rac8 {[%emt 0:00:14]} 18. Rab1 {[%emt 0:12:01]} Qxc3 {[%emt 0:00:56]} 19. Qh4+ {[%emt 0:00:45]} Qf6 $132 {[%emt 0:00:47][%mdl 2048] Black is not keeping still} 20. Qb4+ {[%emt 0:11:12]} Ke8 {[%emt 0:00:39]} 21. Qxb7 {[%emt 0:07:25]} Rxc2 {[%emt 0:00:15]} (21... Rxg2+ $1 $11 22. Kxg2 Qg6+ 23. Kh1 Qe4+ 24. f3 Qxe2) 22. Qb8+ {[%emt 0:05:13]} (22. Qxa6 Rxg2+ 23. Kxg2 Qg6+ 24. Kh1 Qe4+ 25. f3 Qxe2 26. Qxe2 Rxe2 $14) (22. Bxa6 $16 {Threatens to win with Qa8+.} Qg5 23. g3) 22... Qd8 {[%emt 0:01:04]} (22... Rc8 $14 23. Qd6 Rg6) 23. Bxa6 $16 {[%emt 0:01:02]} Rg4 {[%emt 0:02:41] Prevents Qf4} ({Black should try} 23... Rc7) 24. h3 {[%emt 0:08:25]} (24. Qe5 $142 $1 {Rb8 would now be deadly.} Rg5 25. Qh8+ Ke7 26. Qxh7 Rxa2 27. Bb5) 24... Ra4 {[%emt 0:00:34] [#]} 25. Bd3 {[%emt 0:01:26][%csl LRc2,LRh7]} ({Not} 25. Qd6 $2 Rc6 (25... Rcxa2 $2 {loses.} 26. Rb8 $18) 26. Qg3 Raxa6 $19 (26... Rcxa6 27. Rb8 $17)) 25... Rc8 {[%emt 0:02:01]} 26. Qe5 {[%emt 0:05:38] White is more active.} Qc7 {[%emt 0:00:25] Against Rb7} 27. Qh8+ {[%emt 0:03:07]} Ke7 {[%emt 0:00:07]} 28. Qxh7 {[%emt 0:01:05]} Rxa2 {[%emt 0:00:39]} 29. Qh4+ {[%emt 0:02:23]} Ke8 {[%emt 0:00:15]} 30. Rb4 {[%emt 0:02:54] Prevents Ra4} Qc3 {[%emt 0:02:03] [#] Wards off Rg4} 31. Rg4 $1 {[%emt 0:03:32][%cal Rg4g8]} Bc6 {[%emt 0:00:57]} 32. Rg3 {[%emt 0:02:34][%cal Od3a6] Strongly threatening Ba6!} Ra4 {[%emt 0:02:45] This move loses the game for Black.} (32... Ra1 $16 33. Rg8+ Kd7 34. Rxc8 Kxc8) 33. Qh6 {[%emt 0:01:28]} (33. Ba6 $142 {aiming for Rg8+.} Rxh4 34. Rxc3) 33... Ke7 {[%emt 0:01:05]} 34. Bb5 $1 {[%emt 0:01:51]} Bxb5 $2 {[%emt 0:01:27]} (34... Qf6 35. Qxf6+ Kxf6 36. Rf3+ (36. Bxa4 Bxa4 37. Rf3+ Kg7 $18) 36... Kg7 37. Bxa4 Bxa4) 35. Rxc3 $18 {[%emt 0:00:09]} Rxc3 {[%emt 0:00:05]} 36. Rb1 {[%emt 0:00:53] Weighted Error Value: White=0.18 (very precise) /Black=0.40.  Loses game:     	---       	Black=1      Mistake:       	White=3     	Black=4      OK:         	White=16    	Black=6      Best:        	White=3     	Black=7      Strong:       	White=2     	Black=1} 1-0

[Event "British Championship 2024"]
[Site "Hull"]
[Date "2024.07.31"]
[Round "3.7"]
[White "Czopor, Maciej"]
[Black "Conquest, Stuart C"]
[Result "0-1"]
[Annotator "TA"]
[ECO "B03"]
[WhiteElo "2361"]
[BlackElo "2510"]
[PlyCount "96"]
[EventDate "2024.07.31"]
[EventCountry "GBR"]
[SourceTitle "playchess.com"]
[Source "ChessBase"]
[SourceQuality "1"]
[TimeControl "40/5400+30:1800+30"]

{[%evp 19,95,-80,-68,-89,-77,-115,-65,-66,-51,-73,-58,-71,-36,-135,-131,-147,-130,-174,-172,-154,-146,-143,-150,-147,-147,-191,-142,-147,-147,-150,-142,-164,-156,-193,-185,-184,-164,-181,-161,-252,-189,-181,-179,-317,-306,-393,-271,-395,-395,-416,-399,-389,-388,-395,-395,-440,-400,-547,-533,-515,0,-475,-391,-388,-347,-378,-337,-465,-329,-29976,-29977,-29977,-29978,-29992,-29993,-29993,-29994,-29999]} 1. e4 {[%emt 0:00:04]} Nf6 {[%emt 0:00:41]} 2. e5 {[%emt 0:00:04]} Nd5 {[%emt 0:00:08]} 3. d4 {[%emt 0:00:06]} d6 {[%emt 0:00:16]} 4. c4 {[%emt 0:00:04]} Nb6 {[%emt 0:00:07]} 5. f4 {[%emt 0:00:05]} dxe5 {[%emt 0:01:39]} 6. fxe5 {[%emt 0:00:06]} Bf5 {[%emt 0:00:35]} 7. Nc3 {[%emt 0:01:47]} e6 {[%emt 0:00:34]} 8. Be3 {[%emt 0:00:56]} Bb4 {[%emt 0:03:19]} 9. a3 {[%emt 0:33:36] B03: Alekhine's Defence: Four Pawns Attack.} Qh4+ {[%emt 0:31:56]} 10. Bf2 {[%emt 0:00:08]} (10. Kd2 $1 $15 c5 (10... Bxc3+ 11. Kxc3 O-O 12. Nf3 $11) 11. Nf3 (11. axb4 cxd4 12. Nf3 Nxc4+ 13. Bxc4 dxe3+ 14. Kxe3 Qxc4 $15)) 10... Bxc3+ {[%emt 0:01:48]} 11. bxc3 {[%emt 0:00:04]} Qe4+ {[%emt 0:00:29]} 12. Be2 {[%emt 0:09:28] [#]} Qxg2 {[%emt 0:04:45]} (12... Nc6 $1 $17 13. Nf3 Nxc4) 13. Bf3 $15 {[%emt 0:02:10]} Qg6 {[%emt 0:00:20]} 14. Ne2 {[%emt 0:00:51]} (14. Bxb7 Be4 15. Bxa8 Nxa8 $17 (15... Bxa8 $2 16. d5 $19)) 14... Nc6 {[%emt 0:50:53]} (14... Nxc4 $2 15. Qa4+ (15. Bxb7 Bc2 $18) 15... Nd7 16. Qxc4 $18) 15. c5 {[%emt 0:05:39]} Nc4 $146 {[%emt 0:00:00]} ({Predecessor:} 15... Bc2 16. Qc1 Nc4 17. Rg1 Qf5 18. Bxc6+ bxc6 19. Rxg7 {1-0 Erpel,W-Hack,K GER-chT 2BK Gr16 Br3 corr 1995}) 16. Qa4 {[%emt 0:07:23] [#]} (16. Rg1 $15 Qh6 17. Ng3) 16... Nb2 $1 $17 {[%emt 0:00:00]} (16... Be4 $2 17. Rg1 Nb2 18. Qb5 Bxf3 (18... Nd3+ $2 19. Kd2 $18) 19. Rxg6 (19. Qxb2 $2 Qe4 $19) 19... hxg6 20. Bg3 $18 (20. Qxb2 O-O-O $18)) 17. Bxc6+ {[%emt 0:00:05]} Kf8 {[%emt 0:00:00]} (17... bxc6 $2 {too greedy.} 18. Qxc6+ Ke7 19. Bh4+ (19. Qxc7+ Kf8 $16) 19... f6 20. exf6+ (20. Qxc7+ Kf8 $16) 20... gxf6 21. Ng3 (21. Qxc7+ Kf8 $16) 21... Nd3+ 22. Kd2 Qh6+ 23. Ke2 Bg4+ 24. Kxd3 $18) 18. Nf4 {[%emt 0:00:30]} Qg4 {[%emt 0:00:00]} 19. Qb3 {[%emt 0:01:57]} bxc6 {[%emt 0:00:00]} 20. Qxb2 {[%emt 0:00:18]} Qxf4 {[%emt 0:00:00]} 21. Qe2 {[%emt 0:07:19]} Rb8 {[%emt 0:00:00]} 22. Qe3 {[%emt 0:00:45]} Qxe3+ {[%emt 0:00:00]} (22... g5 $19 {Hoping for ...Rb2.} 23. Qxf4 gxf4) 23. Bxe3 $17 {[%emt 0:00:05]} Rb2 {[%emt 0:00:00]} 24. Bd2 {[%emt 0:00:23]} Ke7 {[%emt 0:00:00]} 25. Ke2 {[%emt 0:00:06]} g5 {[%emt 0:00:00]} 26. Rhg1 {[%emt 0:00:32]} g4 {[%emt 0:00:00]} 27. Ke3 {[%emt 0:00:53]} h5 {[%emt 0:00:00]} 28. Rg2 {[%emt 0:01:30]} h4 {[%emt 0:00:16]} 29. Rag1 {[%emt 0:01:23]} (29. Rf2 $142) 29... Ra2 {[%emt 0:03:21]} 30. Bc1 {[%emt 0:00:24]} Ra1 {[%emt 0:01:04]} 31. Rb2 {[%emt 0:14:32]} (31. Bb2 $142 Rxg1 (31... Ra2 $2 32. Bc1 $19) 32. Rxg1) 31... Kd7 $19 {[%emt 0:01:08]} ({Don't do} 31... Rxa3 32. Kf2 $19) 32. Kf4 {[%emt 0:01:22]} Rg8 {[%emt 0:01:03]} 33. Be3 {[%emt 0:00:48]} (33. Re2 {was necessary.}) 33... Rxa3 $19 {[%emt 0:00:42]} 34. Bd2 {[%emt 0:00:37]} a5 {[%emt 0:00:39]} 35. Be1 {[%emt 0:01:33]} Rh8 {[%emt 0:01:00]} 36. Kg5 {[%emt 0:01:03]} h3 {[%emt 0:00:57]} 37. Bg3 {[%emt 0:01:21]} Rxc3 {[%emt 0:00:19]} 38. Ra1 {[%emt 0:01:57]} Rg8+ {[%emt 0:00:46]} 39. Kh4 {[%emt 0:00:29]} Rh8+ {[%emt 0:00:29]} 40. Kg5 {[%emt 0:00:01]} Ra8 {[%emt 0:00:29]} 41. Rba2 {[%emt 0:31:30]} a4 {[%emt 0:02:55]} 42. Ra3 {[%emt 0:00:00]} Rc4 {[%emt 0:10:24]} 43. Bf2 {[%emt 0:00:00]} Rb4 {[%emt 0:03:44]} 44. Kf6 $2 {[%emt 0:00:00]} (44. Kf4 $19) 44... Rg8 {[%emt 0:04:32]} 45. Rxa4 {[%emt 0:00:00]} Rbb8 {[%emt 0:00:38]} 46. d5 {[%emt 0:00:00]} Ke8 {[%emt 0:01:22]} 47. dxe6 {[%emt 0:00:00]} Bxe6 {[%emt 0:01:45]} 48. Ra8 {[%emt 0:00:00]} Rg6# {[%emt 0:09:27]} 0-1